Workbook

Sheet non admission frontière
A1: T I3-1 | B1: Non-admissions et réadmissions simplifiées
B3: 2008 | C3: 2009 | D3: 2010 | E3: 2011 | F3: 2012 | G3: 2013 | H3: 2014 | I3: 2015 | J3: 2016 | K3: 2017 | L3: 2014 / 2015 | M3: 2015 / 2016 | N3: 2016 / 2017
A4: Nombre de refus d'admission | B4: 17628 | C4: 15819 | D4: 10456 | E4: 11459 | F4: 11508 | G4: 12029 | H4: 11537 | I4: 15849 | J4: 63732 | K4: 85408 | L4: 0.3737540088 | M4: 3.021200076 | N4: 0.3401117178
A5: Nombre de réadmissions simplifiées (sens France vers étranger) | B5: 11844 | C5: 11178 | D5: 9255 | E5: 11477 | F5: 11548 | G5: 9894 | H5: 24262 | I5: 24842 | J5: 5852 | K5: 5010 | L5: 0.02390569615 | M5: -0.7644312052 | N5: -0.1438824334
A6: Total | B6: 29472 | C6: 26997 | D6: 19711 | E6: 22936 | F6: 23056 | G6: 21923 | H6: 35799 | I6: 40691 | J6: 69584 | K6: 90418 | L6: 0.1366518618 | M6: 0.7100587353 | N6: 0.2994079099
A8: source

Sheet asile frontière
A1: I3-2 | B1: Nombre de demandes d'asile à la frontière
A3: Années | B3: Nombre de demandes
A4: 2007 | B4: 5639
A5: 2008 | B5: 6415
A6: 2009 | B6: 3576
A7: 2010 | B7: 2789
A8: 2011 | B8: 2572
A9: 2012 | B9: 2223
A10: 2013 | B10: 1402
A11: 2014 | B11: 1129
A12: 2015 | B12: 937
A13: 2016 | B13: 989
A14: 2017 | B14: 1386
A17: Chiffres DCPAF

Sheet rétention
A1: I3-5 | B1: Placement en centre de rétention administrative
C3: 2009 | D3: 2010 | E3: 2011 | F3: 2012 | G3: 2013 | H3: 2014 | I3: 2015 | J3: 2016 | K3: 2017 | L3: 2017 / 2016
B4: Capacité théorique :
B5: -métropole | C5: 1480 | D5: 1646 | E5: 1726 | F5: 1672 | G5: 1633 | H5: 1571 | I5: 1554 | J5: 1554 | K5: 1601 | L5: 0.03024453024
B6: -outre-mer | C6: 144 | D6: 144 | E6: 144 | F6: 144 | G6: 184 | H6: 184 | I6: 227 | J6: 227 | K6: 227 | L6: 0
B7: - total | C7: 1624 | D7: 1790 | E7: 1870 | F7: 1816 | G7: 1817 | H7: 1755 | I7: 1781 | J7: 1781 | K7: 1828 | L7: 0.02638966873
B8: Nombre de personnes placées en CRA :
B9: - métropole | C9: 31608 | D9: 27450 | E9: 24544 | F9: 23394 | G9: 24176 | H9: 25018 | I9: 26266 | J9: 22730 | K9: 26003 | L9: 0.1439947206
B10: - outre-mer | C10: 27699 | D10: 32880 | E10: 24009 | F10: 16595 | G10: 14090 | H10: 16301 | I10: 13828 | J10: 16890 | K10: 17388 | L10: 0.02948490231
B11: Total personnes en CRA | C11: 57969 | D11: 60330 | E11: 48553 | F11: 39989 | G11: 38266 | H11: 41319 | I11: 40094 | J11: 39620 | K11: 43391 | L11: 0.09517920242
B12: Mineurs accompagnants placés en CRA :
B13: - métropole | E13: 478 | F13: 98 | G13: 41 | H13: 42 | I13: 112 | J13: 181 | K13: 308 | L13: 0.7016574586
B14: - outre-mer | E14: 2553 | F14: 3990 | G14: 3711 | H14: 5058 | I14: 4378 | J14: 4285 | K14: 2602 | L14: -0.3927654609
B15: Total mineurs | E15: 3031 | F15: 4088 | G15: 3752 | H15: 5100 | I15: 4490 | J15: 4466 | K15: 2910 | L15: -0.3484102105
B16: Taux d'occupation moyen
B17: - métropole | C17: 0.6 | D17: 0.55 | E17: 0.467 | F17: 0.505 | G17: 0.483 | H17: 0.527 | I17: 0.541 | J17: 0.494 | K17: 0.579 | L17: 0.1720647773
B18: - outre-mer | C18: 0.69 | D18: 0.57 | E18: 0.298 | F18: 0.264 | G18: 0.238 | H18: 0.306 | I18: 0.213 | J18: 0.242 | K18: 0.22 | L18: -0.09090909091
B19: Durée moyenne de la rétention (en jours)
B20: - métropole | C20: 10.2 | D20: 10.03 | E20: 8.7 | F20: 11 | G20: 11.9 | H20: 12.1 | I20: 11.6 | J20: 12.2 | K20: 12.4 | L20: 0.01639344262
B21: - outre-mer | C21: 1.3 | D21: 0.9 | E21: 0.9 | F21: 1 | G21: 0.9 | H21: 1 | I21: 0.8 | J21: 0.9 | K21: 0.9 | L21: 0
B22: Source : DGEF

Sheet mesures exécutées
A1: I3-9 | B1: Mesures prononcées et exécutées
C3: 2009 | D3: 2010 | E3: 2011 | F3: 2012 | G3: 2013 | H3: 2014 | I3: 2015 | J3: 2016 | K3: 2017 | M3: 2017 / 2016
A4: Retours RPT | B4: Prononcées | C4: 77697 | D4: 66877 | E4: 76526 | F4: 72333 | G4: 80178 | H4: 81979 | I4: 75668 | J4: 77886 | K4: 81866 | M4: 0.05110032612
B5: Exécutées | C5: 13623 | D5: 11975 | E5: 11775 | F5: 12769 | G5: 11415 | H5: 12040 | I5: 10909 | J5: 9498 | K5: 9829 | M5: 0.03484944199
A6: Réadmissions RPT dans UE | B6: Prononcées | C6: 12165 | D6: 10849 | E6: 7970 | F6: 6204 | G6: 6287 | H6: 6178 | I6: 7154 | J6: 8305 | K6: 17251 | M6: 1.07718242
B7: Exécutées | C7: 4156 | D7: 3504 | E7: 5728 | F7: 6316 | G7: 6038 | H7: 5314 | I7: 5014 | J7: 3338 | K7: 4589 | M7: 0.3747753146
A8: Renvois ressortissants UE | B8: Prononcées | C8: 4951 | D8: 6620 | E8: 9608 | F8: 12331 | G8: 10932 | H8: 8072 | I8: 6169 | J8: 5939 | K8: 4823 | M8: -0.1879104226
B9: Exécutées | C9: 3275 | D9: 4143 | E9: 5424 | F9: 7727 | G9: 5300 | H9: 4135 | I9: 4068 | J9: 3653 | K9: 3739 | M9: 0.023542294
A10: Départs volontaires aidés | B10: Prononcées | C10: - | D10: - | E10: - | F10: - | G10: - | H10: - | I10: - | J10: - | K10: -
B11: Exécutées | C11: 8278 | D11: 8404 | E11: 9985 | F11: 10010 | G11: 4328 | H11: 2930 | I11: 3093 | J11: 2627 | K11: 3778 | M11: 0.4381423677
A12: Départs spontanés | B12: Prononcées | C12: - | D12: - | E12: - | F12: - | G12: - | H12: - | I12: - | J12: - | K12: -
B13: Exécutées | H13: 3187 | I13: 6512 | J13: 5591 | K13: 5438 | M13: -0.02736540869
A14: Total | B14: Prononcées | C14: 94813 | D14: 84346 | E14: 94104 | F14: 90868 | G14: 97397 | H14: 96229 | I14: 88991 | J14: 92130 | K14: 103940 | M14: 0.1281884294
B15: Exécutées | C15: 29332 | D15: 28026 | E15: 32912 | F15: 36822 | G15: 27081 | H15: 27606 | I15: 29596 | J15: 24707 | K15: 27373 | M15: 0.1079046424
C17: 2009 | D17: 2010 | E17: 2011 | F17: 2012 | G17: 2013 | H17: 2014 | I17: 2015 | J17: 2016 | K17: 2017
A18: Eloignements non aidés | B18: retours forcés RPT* | C18: 8253 | D18: 6401 | E18: 4015 | F18: 4136 | G18: 4 656 | H18: 6515 | I18: 7039 | J18: 6539 | K18: 6909
B19: dont vers les pays tiers | C19: 8230 | D19: 6374 | E19: 3992 | F19: 4127 | G19: 4650 | H19: 5675 | I19: 6311 | J19: 6166 | K19: 6596
B20: réadmissions RPT* | E20: 5728 | F20: 6316 | G20: 6038 | H20: 5314 | I20: 5014 | J20: 3338 | K20: 4589
B21: renvois forcés RUE** | C21: 1499 | D21: 2129 | E21: 2804 | F21: 2 934 | G21: 3382 | H21: 3332 | I21: 3432 | J21: 3084 | K21: 2772
B22: Total forcés | C22: 13908 | D22: 12034 | E22: 12547 | F22: 13386 | G22: 14076 | H22: 15161 | I22: 15485 | J22: 12961 | K22: 14270
B23: retours spontanés RPT* | C23: 3172 | D23: 3437 | E23: 5363 | F23: 6645 | G23: 5377 | H23: 4060 | I23: 2791 | J23: 2150 | K23: 1861
B24: renvois spontanés RUE** | C24: 434 | D24: 855 | E24: 1418 | F24: 1810 | G24: 1400 | H24: 721 | I24: 597 | J24: 537 | K24: 358
B25: Total spontanés | C25: 3606 | D25: 4292 | E25: 6781 | F25: 8455 | G25: 6777 | H25: 4781 | I25: 3388 | J25: 2687 | K25: 2219
A26: Total éloignements non aidés | C26: 17514 | D26: 16326 | E26: 19328 | F26: 21841 | G26: 20853 | H26: 19942 | I26: 18873 | J26: 15648 | K26: 16489
A27: Eloignements aidés | B27: retours aidés RPT* | C27: 2198 | D27: 2137 | E27: 2397 | F27: 1988 | G27: 1382 | H27: 1465 | I27: 1079 | J27: 809 | K27: 1066
B28: renvois aidés RUE** | C28: 1342 | D28: 1159 | E28: 1202 | F28: 2983 | G28: 518 | H28: 82 | I28: 39 | J28: 32 | K28: 12
A29: Total éloignements aidés | C29: 3540 | D29: 3296 | E29: 3599 | F29: 4971 | G29: 1900 | H29: 1547 | I29: 1118 | J29: 841 | K29: 1078
A30: Total éloignements (A) | C30: 21054 | D30: 19622 | E30: 22927 | F30: 26812 | G30: 22753 | H30: 21489 | I30: 19991 | J30: 16489 | K30: 17567
A32: Départs volontaires aides | B32: départs volontaires RPT* aidés | C32: 1644 | D32: 2422 | E32: 3923 | F32: 4269 | G32: 3329 | H32: 2710 | I32: 2950 | J32: 2504 | K32: 3734
B33: départs volontaires RUE** aidés | C33: 6634 | D33: 5982 | E33: 6062 | F33: 5741 | G33: 999 | H33: 220 | I33: 143 | J33: 123 | K33: 44
A34: Total départs volontaires aidés (B) | C34: 8278 | D34: 8404 | E34: 9985 | F34: 10010 | G34: 4328 | H34: 2930 | I34: 3093 | J34: 2627 | K34: 3778
A35: Départs spontanés (C) | C35: - | D35: -- | E35: - | F35: - | G35: - | H35: 3187 | I35: 6512 | J35: 5591 | K35: 5438
A36: Total sorties du territoire (A) + (B) + (C) | C36: 29332 | D36: 28026 | E36: 32912 | F36: 36822 | G36: 27081 | H36: 27606 | I36: 29596 | J36: 24707 | K36: 26783

Sheet ESI
C2: INTERPELLATIONS D'ETRANGERS EN SITUATION IRREGULIERE
C5: Annee
C6: 2012 | D6: 2013 | E6: 2014 | F6: 2015 | G6: 2016 | H6: 2017
B7: Total | C7: 71356 | D7: 74223 | E7: 101349 | F7: 114266 | G7: 97111 | H7: 119635
B8: evolution | D8: 0.04017882168 | E8: 0.3654662301 | F8: 0.1274506902 | G8: -0.1501321478 | H8: 0.2319407688

Sheet ELOI
A2: Mesures exécutées | D2: ANNEE
D3: 2009 | E3: 2010 | F3: 2011 | G3: 2012 | H3: 2013 | I3: 2014 | J3: 2015 | K3: 2016 | L3: 2017
A4: Eloignements | B4: Retour RPT hors UE | C4: Retours spontanés | D4: 3172 | E4: 3437 | F4: 5363 | G4: 6645 | H4: 5377 | I4: 4060 | J4: 2791 | K4: 2150 | L4: 1861
C5: Retours aidés | D5: 2198 | E5: 2137 | F5: 2397 | G5: 1988 | H5: 1382 | I5: 1465 | J5: 1079 | K5: 809 | L5: 1066 | O5: 2009 | P5: 2010 | Q5: 2011 | R5: 2012 | S5: 2013 | T5: 2014 | U5: 2015 | V5: 2016 | W5: 2017
C6: Retours forcés sous billeterie | D6: 8253 | E6: 6401 | F6: 4015 | G6: 4136 | H6: 4656 | I6: 6515 | J6: 7039 | K6: 6539 | L6: 6909 | N6: Retours forcés sous billeterie PT | O6: 8253 | P6: 6401 | Q6: 4015 | R6: 4136 | S6: 4656 | T6: 6515 | U6: 7039 | V6: 6539 | W6: 6903
B7: Total Retour RPT hors UE | D7: 13623 | E7: 11975 | F7: 11775 | G7: 12769 | H7: 11415 | I7: 12040 | J7: 10909 | K7: 9498 | L7: 9836 | N7: Retours spontanés PT | O7: 3172 | P7: 3437 | Q7: 5363 | R7: 6645 | S7: 5377 | T7: 4060 | U7: 2791 | V7: 2150 | W7: 1860
B8: Réadmissions RPT dans UE | C8: Remises | D8: 4156 | E8: 3504 | F8: 5728 | G8: 6316 | H8: 6038 | I8: 5314 | J8: 5014 | K8: 3338 | L8: 4589 | N8: Réadmissions RPT dans UE | O8: 4156 | P8: 3504 | Q8: 5728 | R8: 6316 | S8: 6038 | T8: 5314 | U8: 5014 | V8: 3338 | W8: 4589
B9: Total Réadmissions RPT dans UE | D9: 4156 | E9: 3504 | F9: 5728 | G9: 6316 | H9: 6038 | I9: 5314 | J9: 5014 | K9: 3338 | L9: 4589 | N9: Renvois UE | O9: 1933 | P9: 2984 | Q9: 4222 | R9: 4744 | S9: 4782 | T9: 4053 | U9: 4029 | V9: 3621 | W9: 3137
B10: Renvois ressortissants UE | C10: Renvois spontanés | D10: 434 | E10: 855 | F10: 1418 | G10: 1810 | H10: 1400 | I10: 721 | J10: 597 | K10: 537 | L10: 358 | N10: Total non aidés | O10: 17514 | P10: 16326 | Q10: 19328 | R10: 21841 | S10: 20853 | T10: 19942 | U10: 18873 | V10: 15648 | W10: 16489
C11: Renvois aidés | D11: 1342 | E11: 1159 | F11: 1202 | G11: 2983 | H11: 518 | I11: 82 | J11: 39 | K11: 32 | L11: 12
C12: Renvois forcés sous billeterie | D12: 1499 | E12: 2129 | F12: 2804 | G12: 2934 | H12: 3382 | I12: 3332 | J12: 3432 | K12: 3084 | L12: 2772
B13: Total Renvois ressortissants UE | D13: 3275 | E13: 4143 | F13: 5424 | G13: 7727 | H13: 5300 | I13: 4135 | J13: 4068 | K13: 3653 | L13: 3142
A14: Total Eloignements | D14: 21054 | E14: 19622 | F14: 22927 | G14: 26812 | H14: 22753 | I14: 21489 | J14: 19991 | K14: 16489 | L14: 17567
A15: Aide au départ | B15: Départs volontaires aidés | C15: Départs volontaires aidés RPT | D15: 1644 | E15: 2422 | F15: 3923 | G15: 4269 | H15: 3329 | I15: 2710 | J15: 2950 | K15: 2504 | L15: 3734
C16: Départs volontaires aidés UE-Schengen | D16: 6634 | E16: 5982 | F16: 6062 | G16: 5741 | H16: 999 | I16: 220 | J16: 143 | K16: 123 | L16: 44
B17: Total Départs volontaires aidés | D17: 8278 | E17: 8404 | F17: 9985 | G17: 10010 | H17: 4328 | I17: 2930 | J17: 3093 | K17: 2627 | L17: 3778
A18: Total Aide au départ | D18: 8278 | E18: 8404 | F18: 9985 | G18: 10010 | H18: 4328 | I18: 2930 | J18: 3093 | K18: 2627 | L18: 3778
A19: Total général | D19: 29332 | E19: 28026 | F19: 32912 | G19: 36822 | H19: 27081 | I19: 24419 | J19: 23084 | K19: 19116 | L19: 21345
A20: départs spontanés | I20: 3187 | J20: 6512 | K20: 5591 | L20: 5438
A21: GLOBAL | I21: 27606 | J21: 29596 | K21: 24707 | L21: 26783
D22: 2009 | E22: 2010 | F22: 2011 | G22: 2012 | H22: 2013 | I22: 2014 | J22: 2015 | K22: 2016 | L22: 2017
C23: Eloignements forcés | D23: 13908 | E23: 12034 | F23: 12547 | G23: 13386 | H23: 14076 | I23: 15161 | J23: 15485 | K23: 12961 | L23: 14270
C24: Eloignements et départs spontanés | D24: 3606 | E24: 4292 | F24: 6781 | G24: 8455 | H24: 6777 | I24: 7968 | J24: 9900 | K24: 8278 | L24: 7657
C25: Eloignements et départs aidés | D25: 11818 | E25: 11700 | F25: 13584 | G25: 14981 | H25: 6228 | I25: 4477 | J25: 4211 | K25: 3468 | L25: 4856

Sheet nat et faux docs (hidden)
A1: T I3-22 | B1: =#REF! -> 
A3: Métropole | B3: 2013 | C3: Outre-Mer | D3: 2013 | F3: Métropole | G3: 2014 | H3: Outre-Mer | I3: 2014
A4: ALBANAISE | B4: 765 | C4: COMORIENNE | D4: 286 | F4: ALBANAISE | G4: 696 | H4: COMORIENNE | I4: 407
A5: FRANCAISE | B5: 534 | C5: HAITIENNE | D5: 68 | F5: FRANCAISE | G5: 579 | H5: HAITIENNE | I5: 52
A6: CONGOLAISE | B6: 388 | C6: BRESILIENNE | D6: 45 | F6: SYRIENNE | G6: 431 | H6: BRESILIENNE | I6: 39
A7: ALGERIENNE | B7: 371 | C7: MALGACHE | D7: 35 | F7: ALGERIENNE | G7: 363 | H7: MALGACHE | I7: 35
A8: CONGOLAISE RDC | B8: 359 | C8: SURINAMIENNE | D8: 17 | F8: CONGOLAISE | G8: 339 | H8: FRANCAISE | I8: 15
A9: TUNISIENNE | B9: 263 | C9: DOMINICAINE | D9: 17 | F9: CONGOLAISE RDC | G9: 309 | H9: SYRIENNE | I9: 12
A10: CAMEROUNAISE | B10: 252 | C10: FRANCAISE | D10: 12 | F10: MAROCAINE | G10: 295 | H10: SURINAMIENNE | I10: 11
A11: MAROCAINE | B11: 245 | C11: CHINOISE | D11: 4 | F11: TUNISIENNE | G11: 260 | H11: DOMINICAINE | I11: 7
A12: SYRIENNE | B12: 240 | C12: CONGOLAISE | D12: 4 | F12: GUINEENNE | G12: 220 | H12: CHINOISE | I12: 4
A15: Métropole | B15: 2015 | C15: Outre-Mer | D15: 2015 | F15: Métropole | G15: 2016 | H15: Outre-Mer | I15: 2016
A16: ALBANAISE | B16: 916 | C16: COMORIENNE | D16: 243 | F16: ALBANAISE | G16: 776 | H16: COMORIENNE | I16: 237
A17: FRANCAISE | B17: 589 | C17: HAITIENNE | D17: 68 | F17: FRANCAISE | G17: 472 | H17: SURINAMIENNE | I17: 92
A18: UKRAINIENNE | B18: 543 | C18: SURINAMIENNE | D18: 63 | F18: GUINEENNE | G18: 465 | H18: HAITIENNE | I18: 86
A19: INDETERMINEE | B19: 461 | C19: FRANCAISE | D19: 31 | F19: ALGERIENNE | G19: 425 | H19: BRESILIENNE | I19: 60
A20: SYRIENNE | B20: 391 | C20: BRESILIENNE | D20: 24 | F20: CONGOLAISE | G20: 316 | H20: FRANCAISE | I20: 51
A21: CONGOLAISE | B21: 377 | C21: MALGACHE | D21: 22 | F21: NIGERIANE | G21: 267 | H21: DOMINICAINE | I21: 21
A22: ALGERIENNE | B22: 372 | C22: DOMINICAINE | D22: 20 | F22: IRANIENNE | G22: 260 | H22: MALGACHE | I22: 14
A23: CONGOLAISE RDC | B23: 362 | C23: SYRIENNE | D23: 18 | F23: UKRAINIENNE | G23: 257 | H23: SAINTE LUCIENNE | I23: 11
A24: GUINEENNE | B24: 330 | C24: IRAKIENNE | D24: 16 | F24: MALIENNE | G24: 252 | H24: ALBANAISE | I24: 11
A27: Métropole | B27: 2017 | C27: Outre-Mer | D27: 2017
A28: ALBANAISE | C28: COMORIENNE
A29: FRANCAISE | C29: SURINAMIENNE
A30: GUINEENNE | C30: HAITIENNE
A31: ALGERIENNE | C31: BRESILIENNE
A32: CONGOLAISE | C32: FRANCAISE
A33: NIGERIANE | C33: DOMINICAINE
A34: IRANIENNE | C34: MALGACHE
A35: UKRAINIENNE | C35: SAINTE LUCIENNE
A36: MALIENNE | C36: ALBANAISE

Sheet Filières
A5: Filières d'immigration irrégulière en 2014 et 2015
A7: Filières | B7: 2014 | C7: 2015 | D7: 2016 | E7: 2017
A8: aide à l'entrée et au séjour | B8: 110 | C8: 91 | D8: 118 | E8: 139
A9: organisation de mariage de complaisance | B9: 2 | C9: 6 | D9: 8 | E9: 2
A10: reconnaissances indues d'enfant | B10: 12 | C10: 13 | D10: 14 | E10: 21
A11: recours à la fraude documentaire | B11: 102 | C11: 92 | D11: 82 | E11: 79
A12: Dont travail illégal | D12: 64 | E12: 62
A14: Source : DCPAF

Sheet LPC
B1: I3-10 | C1: laissez-passer consulaires
A6: année | B6: 2008 | C6: 2009 | D6: 2010 | E6: 2011 | F6: 2012 | G6: 2013 | H6: 2014 | I6: 2015 | J6: 2016 | K6: 2017
A7: Laissez-passer demandés | B7: 14011 | C7: 12218 | D7: 10668 | E7: 8350 | F7: 6515 | G7: 7022 | H7: 7423 | I7: 6647 | J7: 5859 | K7: 5811
A8: Laissez-passer obtenus dans les délais utiles | B8: 4523 | C8: 3822 | D8: 3493 | E8: 2460 | F8: 2403 | G8: 2474 | H8: 2857 | I8: 2859 | J8: 2707 | K8: 2966
A9: Laissez-passer obtenus hors délai | B9: 320 | C9: 404 | D9: 318 | E9: 227 | F9: 177 | G9: 168 | H9: 207 | I9: 200 | J9: 170 | K9: 147
A10: Laissez-passer refusés | B10: 3806 | C10: 3870 | D10: 3766 | E10: 1787 | F10: 1481 | G10: 1327 | H10: 1144 | I10: 770 | J10: 587 | K10: 314
A11: demandes laissées sans réponse (demandes - réponses) | B11: 5362 | C11: 4122 | D11: 3091 | E11: 3876 | F11: 2454 | G11: 3053 | H11: 3215 | I11: 2818 | J11: 2395 | K11: 2384
A12: Taux de délivrance dans délai | B12: 0.322817786 | C12: 0.312817155 | D12: 0.3274278215 | E12: 0.2946107784 | F12: 0.3688411358 | G12: 0.352321276 | H12: 0.3848848175 | I12: 0.4301188506 | J12: 0.4620242362 | K12: 0.5104112889
A13: Taux de délivrance global | B13: 0.3456569838 | C13: 0.3458831233 | D13: 0.3572365954 | E13: 0.3217964072 | F13: 0.3960092095 | G13: 0.3762460837 | H13: 0.4127711168 | I13: 0.4602076125 | J13: 0.4910394265 | K13: 0.5357081397
A15: Année 2017
A16: top 10 | B16: PAYS | C16: NOMBRE DE MESURES D’ELOIGNEMENT PRONONCEES | D16: NOMBRE DE MESURES D'ELOIGNEMENT EXECUTEES (sans compter les aides au départ et les départs spontanés) | E16: DEMANDES LPC | F16: TAUX DE RECONNAISSANCE DE LA NATIONALITE | G16: TAUX DE DELIVRANCE DES LPC DANS LES DELAIS
A17: 1 | B17: Algérie | C17: 10245 | D17: 1610 | E17: 1356 | F17: 0.5826 | G17: 0.5044
A18: 2 | B18: Maroc | C18: 7533 | D18: 1488 | E18: 646 | F18: 0.3963 | G18: 0.2972
A19: 3 | B19: Tunisie | C19: 5099 | D19: 985 | E19: 963 | F19: 0.5016 | G19: 0.3977
A20: 4 | B20: Pakistan | C20: 3560 | D20: 466 | E20: 83 | F20: 0.4819 | G20: 0.3373
A21: 5 | B21: Mali | C21: 3289 | D21: 260 | E21: 73 | F21: 0.1781 | G21: 0.1096
A22: 6 | B22: Bangladesh | C22: 2591 | D22: 68 | E22: 24 | F22: 0.3333 | G22: 0.2917
A23: 7 | B23: Sénégal | C23: 2252 | D23: 331 | E23: 113 | F23: 0.4071 | G23: 0.3274
A24: 8 | B24: Egypte | C24: 2349 | D24: 230 | E24: 119 | F24: 0.2521 | G24: 0.1681
A25: 9 | B25: Inde | C25: 1880 | D25: 191 | E25: 113 | F25: 0.5487 | G25: 0.4779
A26: 10 | B26: Mauritanie | C26: 816 | D26: 49 | E26: 26 | F26: 0.4231 | G26: 0.2692
B27: TOTAL ET TAUX MOYEN TOUS PAYS | C27: 103940 | D27: 17567 | E27: 5811 | F27: 0.6025 | G27: 0.5104
A28: Année 2016
A29: top 10 | B29: PAYS | C29: NOMBRE DE MESURES D’ELOIGNEMENT PRONONCEES | D29: NOMBRE DE MESURES D'ELOIGNEMENT EXECUTEES (sans compter les aides au départ et les départs spontanés) | E29: DEMANDES LPC | F29: TAUX DE RECONNAISSANCE DE LA NATIONALITE | G29: TAUX DE DELIVRANCE DES LPC DANS LES DELAIS
A30: 1 | B30: Algérie | C30: 9278 | D30: 1539 | E30: 1294 | F30: 0.5433 | G30: 0.4799
A31: 2 | B31: Maroc | C31: 6651 | D31: 1544 | E31: 680 | F31: 0.3588 | G31: 0.275
A32: 3 | B32: Tunisie | C32: 4671 | D32: 1060 | E32: 1139 | F32: 0.4109 | G32: 0.3152
A33: 4 | B33: Pakistan | C33: 3008 | D33: 370 | E33: 33 | F33: 0.2121 | G33: 0.1212
A34: 5 | B34: Mali | C34: 2844 | D34: 250 | E34: 76 | F34: 0.3947 | G34: 0.1184
A35: 6 | B35: Bangladesh | C35: 2247 | D35: 82 | E35: 66 | F35: 0.2424 | G35: 0.2121
A36: 7 | B36: Sénégal | C36: 2127 | D36: 328 | E36: 96 | F36: 0.375 | G36: 0.3229
A37: 8 | B37: Egypte | C37: 1979 | D37: 184 | E37: 157 | F37: 0.2548 | G37: 0.172
A38: 9 | B38: Inde | C38: 1397 | D38: 159 | E38: 79 | F38: 0.4177 | G38: 0.4051
A39: 10 | B39: Mauritanie | C39: 757 | D39: 38 | E39: 13 | F39: 0.2308 | G39: 0.2308
B40: TOTAL ET TAUX MOYEN TOUS PAYS | C40: 92076 | D40: 16489 | E40: 5859 | F40: 0.5544 | G40: 0.462
A42: Analyse de 10 pays suivi pour leur participation
A44: Année 2015
A45: top 10 | B45: PAYS | C45: NOMBRE DE MESURES D’ELOIGNEMENT PRONONCEES | D45: NOMBRE DE MESURES D'ELOIGNEMENT EXECUTEES (sans compter les aides au départ et les départs spontanés) | E45: DEMANDES LPC | F45: TAUX DE RECONNAISSANCE | G45: TAUX DE DELIVRANCE DES LPC DANS LES DELAIS
F46: DE LA NATIONALITE
A47: 1 | B47: ALGERIE | C47: 8298 | D47: 1633 | E47: 1107 | F47: 0.541 | G47: 0.477
A48: 2 | B48: MAROC | C48: 6563 | D48: 2014 | E48: 746 | F48: 0.346 | G48: 0.24
A49: 3 | B49: TUNISIE | C49: 5507 | D49: 1611 | E49: 1552 | F49: 0.345 | G49: 0.246
A50: 4 | B50: MALI | C50: 2485 | D50: 262 | E50: 83 | F50: 0.398 | G50: 0.253
A51: 5 | B51: PAKISTAN | C51: 2358 | D51: 550 | E51: 94 | F51: 0.468 | G51: 0.436
A52: 6 | B52: BANGLADESH | C52: 2171 | D52: 109 | E52: 63 | F52: 0.222 | G52: 0.159
A53: 7 | B53: SENEGAL | C53: 2067 | D53: 508 | E53: 118 | F53: 0.559 | G53: 0.466
A54: 8 | B54: EGYPTE | C54: 1708 | D54: 283 | E54: 162 | F54: 0.117 | G54: 0.105
A55: 9 | B55: INDE | C55: 1154 | D55: 266 | E55: 178 | F55: 0.214 | G55: 0.208
A56: 10 | B56: MAURITANIE | C56: 829 | D56: 50 | E56: 28 | F56: 0.357 | G56: 0.25
B57: TOTAL ET TAUX MOYEN TOUS PAYS | C57: 88991 | D57: 19991 | E57: 6630 | F57: 0.516 | G57: 0.429

Sheet Top 20 LPC (hidden)
F1: Taux de délivrance des 20 pays dits peu coopératifs
A3: Nationalité | B3: 2013 | G3: 2014 | M3: 2015 | Q3: 2016 | V3: 2017
B4: total des demandes | C4: LPC délivrés dans les délais utiles | D4: Taux de délivrance | F4: Nationalité | G4: total des demandes | H4: LPC délivrés dans les délais utiles | I4: Taux de délivrance | L4: Nationalité | M4: total des demandes | N4: LPC délivrés dans les délais utiles | O4: Taux de délivrance | P4: Nationalité | Q4: total des demandes | R4: LPC délivrés dans les délais utiles | S4: Taux de délivrance | T4: EVO | U4: Nationalité | V4: total des demandes | W4: LPC délivrés dans les délais utiles | X4: Taux de délivrance
A5: Tunisie | B5: 2002 | C5: 478 | D5: 23.88 | F5: Afghanistan | G5: 13 | H5: 2 | I5: 15.38 | J5: =I5-D5 -> -8.5 | L5: Albanie | M5: 320 | N5: 288 | O5: 90 | P5: Algérie | Q5: 1294 | R5: 621 | S5: 47.99 | T5: =S5-O5 -> -42.01 | U5: Algérie
A6: Chine | B6: 198 | C6: 72 | D6: 36.36 | F6: Angola | G6: 28 | H6: 16 | I6: 57.14 | J6: =I6-D6 -> 20.78 | L6: Algérie | M6: 1107 | N6: 528 | O6: 47.7 | P6: Tunisie | Q6: 1139 | R6: 359 | S6: 31.52 | T6: -16.18 | U6: Tunisie
A7: Egypte | B7: 192 | C7: 25 | D7: 13.02 | F7: Arménie | G7: 232 | H7: 140 | I7: 60.34 | J7: 47.32 | L7: Arménie | M7: 153 | N7: 111 | O7: 72.55 | P7: Maroc | Q7: 680 | R7: 187 | S7: 27.5 | T7: -45.05 | U7: Maroc
A8: Inde | B8: 186 | C8: 32 | D8: 17.2 | F8: Bangladesh | G8: 84 | H8: 15 | I8: 17.86 | J8: 0.66 | L8: Bangladesh | M8: 63 | N8: 10 | O8: 15.87 | P8: Albanie | Q8: 306 | R8: 268 | S8: 87.58 | T8: 71.71 | U8: Albanie
A9: Arménie | B9: 128 | C9: 88 | D9: 68.75 | F9: Cap-vert | G9: 21 | H9: 6 | I9: 28.57 | J9: -40.18 | L9: Cameroun | M9: 50 | N9: 40 | O9: 80 | P9: Roumanie | Q9: 260 | R9: 245 | S9: 94.23 | T9: 14.23 | U9: Roumanie
A10: Congo (RDC) | B10: 97 | C10: 39 | D10: 40.21 | F10: Chine | G10: 174 | H10: 86 | I10: 49.43 | J10: 9.22 | L10: Chine (Hong-Kong inclus) | M10: 121 | N10: 50 | O10: 41.32 | P10: Egypte | Q10: 157 | R10: 27 | S10: 17.2 | T10: -24.12 | U10: Egypte
A11: Pakistan | B11: 97 | C11: 24 | D11: 24.74 | F11: Congo (RDC) | G11: 96 | H11: 44 | I11: 45.83 | J11: 21.09 | L11: Congo, République démocratique du | M11: 104 | N11: 49 | O11: 47.12 | P11: Kosovo | Q11: 140 | R11: 94 | S11: 67.14 | T11: 20.02 | U11: Kosovo
A12: Sénégal | B12: 76 | C12: 27 | D12: 35.53 | F12: Congo Brazz. (Rép. du) | G12: 33 | H12: 16 | I12: 48.48 | J12: 12.95 | L12: Côte d'Ivoire | M12: 48 | N12: 13 | O12: 27.08 | P12: Arménie | Q12: 138 | R12: 108 | S12: 78.26 | T12: 51.18 | U12: Arménie
A13: Mali | B13: 69 | C13: 12 | D13: 17.39 | F13: Côte d'Ivoire | G13: 55 | H13: 22 | I13: 40 | J13: 22.61 | L13: Egypte | M13: 160 | N13: 17 | O13: 10.63 | P13: Chine (Hong-Kong inclus) | Q13: 135 | R13: 70 | S13: 51.85 | T13: 41.22 | U13: Chine (Hong-Kong inclus)
A14: Bangladesh | B14: 68 | C14: 3 | D14: 4.41 | F14: Egypte | G14: 187 | H14: 29 | I14: 15.51 | J14: 11.1 | L14: Fédération de Russie | M14: 41 | N14: 27 | O14: 65.85 | P14: Géorgie | Q14: 135 | R14: 117 | S14: 86.67 | T14: 20.82 | U14: Géorgie
A15: Russie | B15: 61 | C15: 16 | D15: 26.23 | F15: Gabon | G15: 93 | H15: 4 | I15: 4.3 | J15: -21.93 | L15: Géorgie | M15: 158 | N15: 134 | O15: 84.81 | P15: Sénégal | Q15: 96 | R15: 31 | S15: 32.29 | T15: -52.52 | U15: Sénégal
A16: Côte d'Ivoire | B16: 55 | C16: 18 | D16: 32.73 | F16: Inde | G16: 217 | H16: 37 | I16: 17.05 | J16: -15.68 | L16: Kosovo | M16: 174 | N16: 133 | O16: 76.44 | P16: Inde | Q16: 79 | R16: 32 | S16: 40.51 | T16: -35.93 | U16: Inde
A17: Gabon | B17: 43 | C17: 1 | D17: 2.33 | F17: Irak | G17: 20 | H17: 2 | I17: 10 | J17: 7.67 | L17: Mali | M17: 83 | N17: 21 | O17: 25.3 | P17: Mali | Q17: 76 | R17: 9 | S17: 11.84 | T17: -13.46 | U17: Mali
A18: Congo Brazz. (Rép. du) | B18: 25 | C18: 14 | D18: 56 | F18: Mali | G18: 93 | H18: 18 | I18: 19.35 | J18: -36.65 | L18: Maroc | M18: 746 | N18: 179 | O18: 23.99 | P18: Bangladesh | Q18: 66 | R18: 14 | S18: 21.21 | T18: -2.78 | U18: Bangladesh
A19: Irak | B19: 24 | C19: 0 | D19: 0 | F19: Mauritanie | G19: 41 | H19: 11 | I19: 26.83 | J19: 26.83 | L19: Pakistan | M19: 94 | N19: 41 | O19: 43.62 | P19: Congo, République démocratique du | Q19: 65 | R19: 28 | S19: 43.08 | T19: -0.54 | U19: Congo, République démocratique du
A20: Afghanistan | B20: 23 | C20: 5 | D20: 21.74 | F20: Pakistan | G20: 92 | H20: 22 | I20: 23.91 | J20: 2.17 | L20: Roumanie | M20: 326 | N20: 300 | O20: 92.02 | P20: Côte d'Ivoire | Q20: 61 | R20: 32 | S20: 52.46 | T20: -39.56 | U20: Côte d'Ivoire
A21: Angola | B21: 23 | C21: 6 | D21: 26.09 | F21: Russie | G21: 57 | H21: 18 | I21: 31.58 | J21: 5.49 | L21: Sénégal | M21: 117 | N21: 54 | O21: 46.15 | P21: Serbie | Q21: 60 | R21: 37 | S21: 61.67 | T21: 15.52 | U21: Serbie
A22: Mauritanie | B22: 23 | C22: 1 | D22: 4.35 | F22: Sénégal | G22: 96 | H22: 36 | I22: 37.5 | J22: 33.15 | L22: Serbie | M22: 55 | N22: 31 | O22: 56.36 | P22: Cameroun | Q22: 55 | R22: 51 | S22: 92.73 | T22: 36.37 | U22: Cameroun
A23: Cap-vert | B23: 19 | C23: 10 | D23: 52.63 | F23: Tunisie | G23: 1840 | H23: 500 | I23: 27.17 | J23: -25.46 | L23: Tunisie | M23: 1552 | N23: 381 | O23: 24.55 | P23: Guinée | Q23: 51 | R23: 28 | S23: 54.9 | T23: 30.35 | U23: Guinée
A24: Viet-Nam | B24: 3 | C24: 0 | D24: 0 | F24: Viet-Nam | G24: 16 | H24: 0 | I24: 0 | J24: 0 | L24: Turquie | M24: 49 | N24: 33 | O24: 67.35 | P24: Fédération de Russie | Q24: 43 | R24: 12 | S24: 27.91 | T24: -39.44 | U24: Fédération de Russie
B26: =SUM(B5:B24) -> 3412 | C26: =SUM(C5:C24) -> 871 | D26: =C26/B26 -> 0.2552754982 | G26: =SUM(G5:G24) -> 3488 | H26: =SUM(H5:H24) -> 1024 | I26: =H26/G26 -> 0.2935779817 | M26: =SUM(M5:M24) -> 5521 | N26: =SUM(N5:N24) -> 2440 | O26: =N26/M26 -> 0.4419489223 | Q26: =SUM(Q5:Q24) -> 5036 | R26: =SUM(R5:R24) -> 2370 | S26: =R26/Q26 -> 0.4706115965

Sheet AME
A1: I3-8 | B1: =#REF! -> 
A3: Date | B3: France entière | C3: métropole
A4: 2007-12-31 | B4: 194615
A5: 2008-12-31 | B5: 202503
A6: 2009-12-31 | B6: 215763
A7: 2010-12-31 | B7: 228036
A8: 2011-12-31 | B8: 208974
A9: 2012-12-31 | B9: 252437
A10: 2013-12-31 | B10: 282425
A11: 2014-12-31 | B11: 294298
A12: 2015-12-31 | B12: 316314 | C12: 295233
A13: 2016-12-31 | B13: 311310 | C13: 288269
A14: 2017-12-31 | B14: 315800 | D14: =B14/B13-1 -> 0.01442292249
A16: Source : CNAMTS

Sheet Mise en cause
A1: G I3-3 | B1: Emploi d'étrangers sans titre
B4: EVOLUTION DU NOMBRE DE PERSONNES MISE EN CAUSE POUR EMPLOI D'ETRANGERS SANS TITRE DE TRAVAIL (INDEX 94)
A6: Données | B6: métropole | D6: 2004 | E6: 2005 | F6: 2006 | G6: 2007 | H6: 2008 | I6: 2009 | J6: 2010 | K6: 2011 | L6: 2012 | M6: 2013 | N6: 2014 | O6: 2015 | P6: 2016 | Q6: 2017
A7: MEC total | B7: PMC en Métropole | D7: 586 | E7: 887 | F7: 1077 | G7: 1564 | H7: 2675 | I7: 2843 | J7: 2608 | K7: 2703 | L7: 2689 | M7: 2401 | N7: 2063 | O7: 1974 | P7: 1854 | Q7: 939
B8: PMC dans les DOM-COM | D8: 161 | E8: 187 | F8: 141 | G8: 124 | H8: 356 | I8: 364 | J8: 353 | K8: 353 | L8: 403 | M8: 348 | N8: 354 | O8: 259 | P8: 245 | Q8: 147
A9: MEC Etranger | B9: dont PMC étrangers en Métropole | D9: 258 | E9: 450 | F9: 580 | G9: 802 | H9: 1450 | I9: 1508 | J9: 1350 | K9: 1433 | L9: 1334 | M9: 1215 | N9: 989 | O9: 903 | P9: 852 | Q9: 883
B10: Nombre total de PMC | D10: 747 | E10: 1074 | F10: 1218 | G10: 1688 | H10: 3031 | I10: 3207 | J10: 2961 | K10: 3056 | L10: 3092 | M10: 2749 | N10: 2417 | O10: 2233 | P10: 2099 | Q10: 1086

Sheet Index 93 94 95
A1: I3-13 | B1: Etat 4001 – Résultats des index 93, 94 et 95 métropole
B3: 2010 | C3: 2011 | D3: 2012 | E3: 2013 | F3: 2014 | G3: 2015 | H3: 2016 | I3: 2017 | J3: Évolution 2016/2017
A4: Total des personnes mises en cause | B4: 12479 | C4: 13707 | D4: 13954 | E4: 12907 | F4: 12024 | G4: 11202 | H4: 10685 | I4: 9878 | J4: -0.07552643893
A5: Etrangers mis en cause | B5: 3988 | C5: 4331 | D5: 4272 | E5: 4495 | F5: 3654 | G5: 3323 | H5: 3129 | I5: 2997 | J5: -0.04218600192
A6: Part des étrangers | B6: 0.3195768892 | C6: 0.3159699424 | D6: 0.3061487745 | E6: 0.3482606338 | F6: 0.3038922156 | G6: 0.2966434565 | H6: 0.2928404305 | I6: 0.3034014983 | J6: 0.03606424069
A8: Source MI - DCPJ

Sheet index 94
A1: T I-3-14a | C1: Emploi d'étrangers sans titres - Etat 4001 - Index 94
B3: 2009 | C3: 2010 | D3: 2011 | E3: 2012 | F3: 2013 | G3: 2014 | H3: 2015 | I3: 2016 | J3: 2017 | K3: Évolution 2017/2016
A4: Total des personnes mises en cause | B4: 2843 | C4: 2608 | D4: 2687 | E4: 2689 | F4: 2401 | G4: 2063 | H4: 1977 | I4: 1854 | J4: 1830 | K4: =(J4-I4)/I4 -> -0.01294498382
A5: - dont étrangers | B5: 1534 | C5: 1354 | D5: 1426 | E5: 1334 | F5: 1215 | G5: 989 | H5: 911 | I5: 852 | J5: 883 | K5: =(J5-I5)/I5 -> 0.03638497653
A6: Part des étrangers | B6: =B5/B4 -> 0.5395708758 | C6: 0.5191717791 | D6: 0.5307033867 | E6: 0.4960952027 | F6: 0.5060391504 | G6: 0.4793989336 | H6: 0.4607991907 | I6: 0.4595469256 | J6: 0.4825136612 | K6: =(J6-I6)/I6 -> 0.04997691064
A8: Source MI - DCPJ

Sheet INDEX 93 et 95
B1: index 93 et 95 (travail dissimulé et prêt illicite de main d'œuvre),
E4: Données
B5: métropole | C5: année | D5: Index | E5: Faits constatés | F5: MEC total | G5: MEC Etranger | H5: Parts d'étrangers
B6: Métropole | C6: 2014 | D6: 93 | E6: 10510 | F6: 9829 | G6: 2627 | H6: 26.73
D7: 95 | E7: 232 | F7: 132 | G7: 38 | H7: 28.79
C8: Total 2014 | E8: 10742 | F8: 9961 | G8: 2665 | H8: 26.75
C9: 2015 | D9: 93 | E9: 10792 | F9: 9100 | G9: 2373 | H9: 26.08
D10: 95 | E10: 184 | F10: 125 | G10: 39 | H10: 31.2
C11: Total 2015 | E11: 10976 | F11: 9225 | G11: 2412 | H11: 26.15
C12: 2016 | D12: 93 | E12: 10714 | F12: 8733 | G12: 2252 | H12: 25.79
D13: 95 | E13: 131 | F13: 111 | G13: 27 | H13: 24.32
C14: Total 2016 | E14: 10845 | F14: 8844 | G14: 2279 | H14: 25.77
C15: 2017 | D15: 93 | E15: 9651 | F15: 7957 | G15: 2092 | H15: 26.29
D16: 95 | E16: 105 | F16: 91 | G16: 22 | H16: 24.18
C17: Total 2017 | E17: 9756 | F17: 8048 | G17: 2114 | H17: 26.27
B19: DOM-COM | C19: 2014 | D19: 93 | E19: 1110 | F19: 912 | G19: 147 | H19: 16.12
D20: 95 | E20: 2 | F20: 9 | G20: 0 | H20: 0
C21: Total 2014 | E21: 1112 | F21: 921 | G21: 147 | H21: 15.96
C22: 2015 | D22: 93 | E22: 1204 | F22: 914 | G22: 154 | H22: 16.85
D23: 95 | E23: 2 | F23: 1 | G23: 0 | H23: 0
C24: Total 2015 | E24: 1206 | F24: 915 | G24: 154 | H24: 16.83
C25: 2016 | D25: 93 | E25: 1220 | F25: 891 | G25: 187 | H25: 20.99
D26: 95 | E26: 3 | F26: 5 | G26: 0 | H26: 0
C27: Total 2016 | E27: 1223 | F27: 896 | G27: 187 | H27: 20.87
C28: 2017 | D28: 93 | E28: 1086 | F28: 829 | G28: 209 | H28: 25.21
D29: 95 | E29: 4 | F29: 0 | G29: 0
C30: Total 2017 | E30: 1090 | F30: 829 | G30: 209 | H30: 25.21

Sheet index 81_82_83
A1: T I3-21 | B1: Index 81, 82 et 83
B3: 2009 | D3: 2010 | F3: 2011 | H3: 2012 | J3: 2013 | L3: 2014 | N3: 2015 | P3: 2016 | R3: 2017
A4: METROPOLE | B4: Nombre de personnes mises en cause | C4: Part d'étrangers | D4: Nombre de personnes mises en cause | E4: Part d'étrangers | F4: Nombre de personnes mises en cause | G4: Part d'étrangers | H4: Nombre de personnes mises en cause | I4: Part d'étrangers | J4: Nombre de personnes mises en cause | K4: Part d'étrangers | L4: Nombre de personnes mises en cause | M4: Part d'étrangers | N4: Nombre de personnes mises en cause | O4: Part d'étrangers | P4: Nombre de personnes mises en cause | Q4: Part d'étrangers | R4: Nombre de personnes mises en cause | S4: Part d'étrangers
A5: Index 81 | B5: 3593 | C5: 83.13 | D5: 3668 | E5: 82.61 | F5: 4340 | G5: 84.59 | H5: 4272 | I5: 84.85 | J5: 5126 | K5: 86.66 | L5: 5041 | M5: 87.11 | N5: 4781 | O5: 89.69 | P5: 4491 | Q5: 91.25 | R5: 4633 | S5: 91.6
A6: Index 82 | B6: 2604 | C6: 50.12 | D6: 2567 | E6: 52.2 | F6: 2823 | G6: 53.91 | H6: 3191 | I6: 50.36 | J6: 3403 | K6: 53.63 | L6: 3079 | M6: 50.44 | N6: 2608 | O6: 49.12 | P6: 2622 | Q6: 52.63 | R6: 2946 | S6: 52.99
A7: Index 83 | B7: 2311 | C7: 30.29 | D7: 2397 | E7: 30.08 | F7: 2429 | G7: 33.39 | H7: 2852 | I7: 27.1 | J7: 3645 | K7: 31.14 | L7: 3619 | M7: 30.06 | N7: 3209 | O7: 26.89 | P7: 3351 | Q7: 27.25 | R7: 2927 | S7: 26.61
A8: Total cumulé | B8: 8508 | C8: 58.67 | D8: 8632 | E8: 58.98 | F8: 9592 | G8: 62.59 | H8: 10315 | I8: 58.22 | J8: 12174 | K8: 60.8 | L8: 11739 | M8: 59.9 | N8: 10598 | O8: 60.7 | P8: 10464 | Q8: 61.08 | R8: 10506 | S8: 62.67
A10: Source: MI - DCPJ

Sheet Aides aux retours
A1: I3-12 | B1: Etat récapitulatif des retours aidés (ARV et ARH)
A4: source OFII
B5: 2008 | C5: 2009 | D5: 2010 | E5: 2011 | F5: 2012 | G5: 2013 | H5: 2014 | I5: 2015 | J5: 2016 | K5: 2017
A6: Aide au retours pays tiers | B6: 3128 | C6: 4096 | D6: 4713 | E6: 6839 | F6: 6824 | G6: 5492 | H6: 5423 | I6: 4479 | J6: 4546 | K6: 7024
A7: Aide au retour Union européenne | B7: 9290 | C7: 11140 | D7: 9341 | E7: 9001 | F7: 10749 | G7: 1894 | H7: 445 | I7: 279 | J7: 228 | K7: 90
A8: Total | B8: 12418 | C8: 15236 | D8: 14054 | E8: 15840 | F8: 17573 | G8: 7386 | H8: 5868 | I8: 4758 | J8: 4774 | K8: 7114

Sheet contribution spéciale OFII
A1: Évolution du nombre de dossiers transmis à l’OFII
A5: Année | B5: 2008 | C5: 2009 | D5: 2010 | E5: 2011 | F5: 2012 | G5: 2013 | H5: 2014 | I5: 2015 | J5: 2016 | K5: 2017 | L5: 2017 / 2016
A6: Nombre de dossiers parvenus à l’OFII | B6: 1341 | C6: 1433 | D6: 1240 | E6: 1265 | F6: 2052 | G6: 1944 | H6: 1568 | I6: 1547 | J6: 1232 | K6: 1140 | L6: =(K6-J6)/J6 -> -0.07467532468
A7: Nombre d’étrangers employés sans titre) | B7: 2814 | C7: 2046 | D7: 2438 | E7: 2240 | F7: 3974 | G7: 3473 | H7: 2512 | I7: 2449 | J7: 2007 | K7: 1918 | L7: =(K7-J7)/J7 -> -0.04434479322
A8: Nombre moyen d’infractions par dossier | B8: =B7/B6 -> 2.098434004 | C8: 1.427773901 | D8: 1.966129032 | E8: 1.770750988 | F8: 1.936647173 | G8: 1.786522634 | H8: 1.602040816 | I8: 1.58 | J8: 1.63 | K8: 1.68 | L8: =(K8-J8)/J8 -> 0.03067484663
A9: Source : OFII

Sheet fraude docs
A1: T I3-20 | B1: Typologie des fraudes (en nombre de faux documents découverts)
A4: DOCUMENTS | B4: TYPES DE FRAUDE | C4: 2009 2 | D4: 2010 2 | E4: 2011 2 | F4: 2012 1 | G4: 2013 1 | H4: 2014 1 | I4: 2015 | J4: 2016 | K4: 2017
A5: Cartes d'identité | B5: FAUX DOCUMENTS | C5: 1144 | D5: 651 | E5: 762 | F5: 974 | G5: 792 | H5: 799 | I5: 617 | J5: 655 | K5: 903
B6: dont contrefaçons | C6: 110 | D6: 133 | E6: 117 | F6: 106 | G6: 144 | H6: 218 | I6: 120 | J6: 132 | K6: 337
B7: dont falsifications | C7: 93 | D7: 63 | E7: 46 | F7: 156 | G7: 54 | H7: 43 | I7: 28 | J7: 25 | K7: 48
B8: dont usages frauduleux | C8: 220 | D8: 186 | E8: 256 | F8: 244 | G8: 275 | H8: 234 | I8: 210 | J8: 264 | K8: 298
B9: dont obtentions frauduleuses | C9: 720 | D9: 268 | E9: 341 | F9: 454 | G9: 318 | H9: 302 | I9: 258 | J9: 218 | K9: 200
B10: dont voles vierges | C10: 1 | D10: 1 | E10: 2 | F10: 14 | G10: 1 | H10: 2 | I10: 1 | J10: 16 | K10: 20
A11: Passeports | B11: FAUX DOCUMENTS | C11: 1157 | D11: 526 | E11: 643 | F11: 515 | G11: 588 | H11: 452 | I11: 448 | J11: 445 | K11: 899
B12: dont contrefaçons | C12: 41 | D12: 43 | E12: 21 | F12: 23 | G12: 29 | H12: 21 | I12: 14 | J12: 16 | K12: 183
B13: dont falsifications | C13: 232 | D13: 152 | E13: 182 | F13: 155 | G13: 138 | H13: 89 | I13: 71 | J13: 39 | K13: 356
B14: dont usages frauduleux | C14: 174 | D14: 160 | E14: 203 | F14: 179 | G14: 205 | H14: 159 | I14: 170 | J14: 178 | K14: 183
B15: dont obtentions frauduleuses | C15: 698 | D15: 169 | E15: 228 | F15: 158 | G15: 211 | H15: 181 | I15: 190 | J15: 208 | K15: 173
B16: dont voles vierges | C16: 12 | D16: 2 | E16: 9 | F16: 0 | G16: 5 | H16: 2 | I16: 3 | J16: 4 | K16: 4
A17: Permis de conduire | B17: FAUX DOCUMENTS | C17: 279 | D17: 151 | E17: 125 | F17: 208 | G17: 178 | H17: 237 | I17: 265 | J17: 140 | K17: 265
B18: dont contrefaçons | C18: 42 | D18: 45 | E18: 37 | F18: 38 | G18: 57 | H18: 111 | I18: 87 | J18: 23 | K18: 145
B19: dont falsifications | C19: 21 | D19: 23 | E19: 12 | F19: 22 | G19: 31 | H19: 19 | I19: 15 | J19: 19 | K19: 16
B20: dont usages frauduleux | C20: 20 | D20: 15 | E20: 23 | F20: 21 | G20: 18 | H20: 21 | I20: 14 | J20: 18 | K20: 33
B21: dont obtentions frauduleuses | C21: 193 | D21: 67 | E21: 52 | F21: 127 | G21: 72 | H21: 85 | I21: 148 | J21: 77 | K21: 71
B22: dont voles vierges | C22: 3 | D22: 1 | E22: 1 | F22: 0 | G22: 0 | H22: 1 | I22: 1 | J22: 3 | K22: 0
A23: Titres de séjour | B23: FAUX DOCUMENTS | C23: 1141 | D23: 1159 | E23: 929 | F23: 1178 | G23: 1017 | H23: 997 | I23: 732 | J23: 825 | K23: 737
B24: dont contrefaçons | C24: 397 | D24: 322 | E24: 233 | F24: 296 | G24: 225 | H24: 201 | I24: 146 | J24: 146 | K24: 184
B25: dont falsifications | C25: 162 | D25: 148 | E25: 102 | F25: 174 | G25: 95 | H25: 71 | I25: 64 | J25: 59 | K25: 81
B26: dont usages frauduleux | C26: 309 | D26: 251 | E26: 256 | F26: 250 | G26: 256 | H26: 197 | I26: 145 | J26: 180 | K26: 170
B27: dont obtentions frauduleuses | C27: 270 | D27: 437 | E27: 338 | F27: 457 | G27: 441 | H27: 528 | I27: 377 | J27: 440 | K27: 302
B28: dont voles vierges | C28: 3 | D28: 1 | E28: 0 | F28: 1 | G28: 0 | H28: 0 | I28: 0 | J28: 0 | K28: 0
A29: Visas | B29: FAUX DOCUMENTS | C29: 144 | D29: 216 | E29: 194 | F29: 146 | G29: 211 | H29: 135 | I29: 121 | J29: 116 | K29: 175
B30: dont contrefaçons | C30: 57 | D30: 66 | E30: 34 | F30: 33 | G30: 57 | H30: 37 | I30: 38 | J30: 17 | K30: 37
B31: dont falsifications | C31: 56 | D31: 102 | E31: 91 | F31: 32 | G31: 38 | H31: 18 | I31: 13 | J31: 9 | K31: 19
B32: dont usages frauduleux | C32: 7 | D32: 11 | E32: 23 | F32: 14 | G32: 19 | H32: 5 | I32: 9 | J32: 32 | K32: 14
B33: dont obtentions frauduleuses | C33: 21 | D33: 37 | E33: 46 | F33: 66 | G33: 97 | H33: 75 | I33: 61 | J33: 58 | K33: 105
B34: dont voles vierges | C34: 3 | D34: 0 | E34: 0 | F34: 1 | G34: 0 | H34: 0 | I34: 0 | J34: 0 | K34: 0
A35: Actes d'état civil | B35: FAUX DOCUMENTS | C35: 1667 | D35: 323 | E35: 658 | F35: 516 | G35: 1057 | H35: 522 | I35: 404 | J35: 589 | K35: 572
B36: dont contrefaçons | C36: 992 | D36: 165 | E36: 431 | F36: 127 | G36: 415 | H36: 154 | I36: 188 | J36: 167 | K36: 231
B37: dont falsifications | C37: 33 | D37: 36 | E37: 22 | F37: 45 | G37: 194 | H37: 47 | I37: 47 | J37: 55 | K37: 15
B38: dont usages frauduleux | C38: 29 | D38: 42 | E38: 66 | F38: 150 | G38: 288 | H38: 242 | I38: 84 | J38: 171 | K38: 259
B39: dont obtentions frauduleuses | C39: 613 | D39: 80 | E39: 139 | F39: 194 | G39: 160 | H39: 79 | I39: 85 | J39: 196 | K39: 67
B40: dont voles vierges | C40: - | D40: 0 | E40: 0 | F40: 0 | G40: 0 | H40: 0 | I40: 0 | J40: 0 | K40: 0
A41: 1 métropole (source DCPAF); 2 national
A45: GENDARMERIE | D45: 2010 | E45: 2011 | F45: 2012 | G45: 2013 | H45: 2014 | I45: 2015 | J45: 2016 | K45: 2017
B46: Nombre de documents contrôlés | D46: 13390 | E46: 21496 | F46: 34786 | G46: 39257 | H46: 39998 | I46: 54641 | J46: 70072 | K46: 91607
A47: Documents français | B47: Fausses CNI détectées | D47: 44 | E47: 64 | F47: 54 | G47: 103 | H47: 176 | I47: 34 | J47: 55 | K47: 47
B48: Faux passeports détectés | D48: 21 | E48: 59 | F48: 31 | G48: 62 | H48: 11 | I48: 5 | J48: 3 | K48: 5
B49: Faux permis conduire détectés | D49: 34 | E49: 152 | F49: 63 | G49: 185 | H49: 134 | I49: 24 | J49: 29 | K49: 28
B50: Autres faux détectés | D50: 123 | E50: 291 | F50: 234 | G50: 268 | H50: 559 | I50: 78 | J50: 107 | K50: 227
A51: Documents étrangers | B51: Fausses CNI détectées | D51: 123 | E51: 167 | F51: 203 | G51: 234 | H51: 86 | I51: 62 | J51: 50 | K51: 85
B52: Faux passeports détectés | D52: 60 | E52: 78 | F52: 68 | G52: 144 | H52: 39 | I52: 48 | J52: 57 | K52: 54
B53: Faux permis conduire détectés | D53: 422 | E53: 421 | F53: 420 | G53: 440 | H53: 222 | I53: 220 | J53: 240 | K53: 266
B54: Autres faux détectés | D54: 108 | E54: 167 | F54: 160 | G54: 116 | H54: 103 | I54: 153 | J54: 180 | K54: 248
A55: source MI-DGGN
